[Event "FIDE WYCC Open U14 2023"]
[Site "Montesilvano"]
[Date "2023.11.14"]
[Round "2.8"]
[White "Goh, Zi Han"]
[Black "Sommer, Justus"]
[Result "1-0"]
[ECO "E06"]
[WhiteElo "2333"]
[BlackElo "2013"]
[Annotator "ChessBase"]
[PlyCount "73"]
[EventDate "2023.11.13"]
[EventType "swiss"]
[EventCountry "ITA"]
[SourceTitle "playchess.com"]
[Source "ChessBase"]
[SourceQuality "1"]
[TimeControl "40/5400+30:1800+30"]

1. d4 {[%emt 0:01:23]} d5 {[%emt 0:00:12]} 2. c4 {[%emt 0:00:11]} e6 {[%emt 0:00:16]} 3. Nf3 {[%emt 0:00:21]} Nf6 {[%emt 0:01:56]} 4. g3 {[%emt 0:00:33]} Be7 {[%emt 0:00:15]} 5. Bg2 {[%emt 0:00:07]} O-O {[%emt 0:00:17]} 6. O-O {[%emt 0:00:11]} dxc4 {[%emt 0:00:23]} 7. Qc2 {[%emt 0:01:27]} a6 {[%emt 0:00:34]} 8. a4 {[%emt 0:00:20]} Bd7 {[%emt 0:00:30]} 9. Rd1 {[%emt 0:00:41]} Bc6 {[%emt 0:07:10]} 10. Bg5 {[%emt 0:01:01]} Nbd7 {[%emt 0:05:52]} 11. Nbd2 {[%emt 0:01:32]} h6 {[%emt 0:05:05]} 12. Bxf6 {[%emt 0:00:33]} Nxf6 {[%emt 0:01:46]} 13. Nxc4 {[%emt 0:02:01]} Be4 {[%emt 0:02:46]} 14. Qc3 {[%emt 0:05:56]} Nd5 {[%emt 0:09:56]} 15. Qb3 {[%emt 0:00:50]} Nb4 {[%emt 0:02:50]} 16. Ne3 {[%emt 0:05:16]} Bd6 {[%emt 0:09:02]} 17. Rac1 {[%emt 0:01:52]} Qe7 {[%emt 0:02:11]} 18. Nd2 {[%emt 0:06:42]} Bxg2 {[%emt 0:01:08]} 19. Kxg2 {[%emt 0:00:09]} Rfd8 {[%emt 0:03:17]} 20. Ne4 {[%emt 0:03:10]} Rab8 {[%emt 0:14:28]} 21. Nc4 {[%emt 0:10:02]} Nd5 {[%emt 0:04:45]} 22. Qf3 {[%emt 0:13:23]} Nf6 {[%emt 0:08:17]} 23. Nc3 {[%emt 0:04:16]} Bb4 {[%emt 0:04:20]} 24. e4 {[%emt 0:01:16]} Bxc3 {[%emt 0:01:03]} 25. Rxc3 {[%emt 0:02:36]} Qb4 {[%emt 0:04:06]} 26. a5 {[%emt 0:00:18]} Qe7 {[%emt 0:02:35]} 27. Rb3 {[%emt 0:01:23]} c5 {[%emt 0:03:44]} 28. d5 {[%emt 0:00:47]} Ne8 {[%emt 0:02:16]} 29. e5 {[%emt 0:04:37]} exd5 {[%emt 0:00:24]} 30. Rxd5 {[%emt 0:00:19]} Qe6 {[%emt 0:02:10]} 31. Rxb7 {[%emt 0:06:25]} Rxb7 {[%emt 0:01:06]} 32. Rxd8 {[%emt 0:00:12]} Rd7 {[%emt 0:01:02]} 33. Rb8 {[%emt 0:04:26]} Kh7 {[%emt 0:00:39]} 34. b3 {[%emt 0:02:19]} Nc7 {[%emt 0:00:28]} 35. Rb6 {[%emt 0:03:03]} Qe7 {[%emt 0:00:20]} 36. Rd6 {[%emt 0:00:38]} Ne6 {[%emt 0:00:47]} 37. Qd3+ {[%emt 0:00:06]} 1-0

[Event "FIDE WYCC Open U14 2023"]
[Site "Montesilvano"]
[Date "2023.11.14"]
[Round "2.9"]
[White "Pleschke, Julius Jonas"]
[Black "Perossa, Nicolas"]
[Result "0-1"]
[ECO "A05"]
[WhiteElo "2024"]
[BlackElo "2330"]
[Annotator "ChessBase"]
[PlyCount "141"]
[EventDate "2023.11.13"]
[EventType "swiss"]
[EventCountry "ITA"]
[SourceTitle "playchess.com"]
[Source "ChessBase"]
[SourceQuality "1"]
[TimeControl "40/5400+30:1800+30"]

1. Nf3 {[%emt 0:00:21]} Nf6 {[%emt 0:00:10]} 2. g3 {[%emt 0:00:15]} g6 {[%emt 0:00:17]} 3. Bg2 {[%emt 0:00:05]} Bg7 {[%emt 0:00:13]} 4. O-O {[%emt 0:00:07]} O-O {[%emt 0:00:24]} 5. d4 {[%emt 0:00:15]} d6 {[%emt 0:00:07]} 6. c4 {[%emt 0:00:04]} Nbd7 {[%emt 0:00:08]} 7. Nc3 {[%emt 0:00:12]} Re8 {[%emt 0:00:36]} 8. e4 {[%emt 0:01:02]} e5 {[%emt 0:00:19]} 9. h3 {[%emt 0:00:46]} exd4 {[%emt 0:05:10]} 10. Nxd4 {[%emt 0:00:13]} Nc5 {[%emt 0:00:10]} 11. Re1 {[%emt 0:00:47]} a5 {[%emt 0:00:15]} 12. Kh2 {[%emt 0:16:29]} Nfd7 {[%emt 0:58:03]} 13. f4 {[%emt 0:15:44]} Nb6 {[%emt 0:02:02]} 14. Bf1 {[%emt 0:02:29]} f5 {[%emt 0:06:50]} 15. Nb3 {[%emt 0:06:13]} Bxc3 {[%emt 0:11:58]} 16. bxc3 {[%emt 0:02:31]} Nxe4 {[%emt 0:00:02]} 17. Qc2 {[%emt 0:02:30]} Bd7 {[%emt 0:09:14]} 18. Be3 {[%emt 0:03:20]} c5 {[%emt 0:02:30]} 19. Nd2 {[%emt 0:02:56]} Bc6 {[%emt 0:00:46]} 20. Rab1 {[%emt 0:00:51]} Nd7 {[%emt 0:00:33]} 21. Nxe4 {[%emt 0:02:44]} Bxe4 {[%emt 0:00:15]} 22. Bd3 {[%emt 0:00:09]} Qc7 {[%emt 0:00:49]} 23. Bf2 {[%emt 0:03:01]} Nf6 {[%emt 0:00:30]} 24. g4 {[%emt 0:01:36]} Qc6 {[%emt 0:00:36]} 25. gxf5 {[%emt 0:01:52]} gxf5 {[%emt 0:00:13]} 26. Bh4 {[%emt 0:00:37]} Bxd3 {[%emt 0:00:34]} 27. Qxd3 {[%emt 0:02:02]} Ne4 {[%emt 0:00:01]} 28. Rg1+ {[%emt 0:01:21]} Kf8 {[%emt 0:00:50]} 29. Bg5 {[%emt 0:01:25]} Re6 {[%emt 0:00:36]} 30. Qd5 {[%emt 0:00:59]} Qxd5 {[%emt 0:00:26]} 31. cxd5 {[%emt 0:00:01]} Rg6 {[%emt 0:00:33]} 32. Rxb7 {[%emt 0:00:15]} Kg8 {[%emt 0:00:35]} 33. h4 {[%emt 0:01:12]} Rg7 {[%emt 0:00:40]} 34. Rb6 {[%emt 0:00:41]} Re8 {[%emt 0:00:31]} 35. h5 {[%emt 0:05:03]} Nd2 {[%emt 0:00:30]} 36. Rg2 {[%emt 0:01:15]} Nf1+ {[%emt 0:00:25]} 37. Kh1 {[%emt 0:05:16]} Ne3 {[%emt 0:00:02]} 38. Re2 {[%emt 0:00:44]} Rd7 {[%emt 0:00:24]} 39. Ra6 {[%emt 0:02:13]} Kf7 {[%emt 0:00:11]} 40. Rxa5 {[%emt 0:00:00]} Nxd5 41. Rxe8 {[%emt 0:13:22]} Kxe8 {[%emt 0:00:40]} 42. Ra3 {[%emt 0:02:26]} Rb7 {[%emt 0:15:32]} 43. h6 {[%emt 0:07:25]} Kd7 {[%emt 0:04:19]} 44. Kg1 {[%emt 0:05:27]} Kc6 {[%emt 0:07:35]} 45. Kf1 {[%emt 0:04:16]} Ne3+ {[%emt 0:04:08]} 46. Kf2 {[%emt 0:03:10]} Nd5 {[%emt 0:01:43]} 47. Kf1 {[%emt 0:00:57]} Nc7 {[%emt 0:00:15]} 48. Bf6 {[%emt 0:02:13]} Kd5 {[%emt 0:00:54]} 49. Ke2 {[%emt 0:04:23]} Ke4 {[%emt 0:00:39]} 50. Ra4+ {[%emt 0:01:08]} Kd5 {[%emt 0:00:12]} 51. Kd3 {[%emt 0:02:16]} Ke6 {[%emt 0:00:41]} 52. Bg5 {[%emt 0:00:38]} Rb2 {[%emt 0:00:39]} 53. Ra7 {[%emt 0:01:44]} Kd7 {[%emt 0:00:09]} 54. Bf6 {[%emt 0:01:49]} Rh2 {[%emt 0:00:41]} 55. Bg5 {[%emt 0:00:23]} Kc8 {[%emt 0:00:35]} 56. Ra4 {[%emt 0:03:56]} Kb7 {[%emt 0:00:36]} 57. Ra3 {[%emt 0:01:56]} Rh3+ {[%emt 0:00:33]} 58. Kc2 {[%emt 0:01:07]} Kc6 {[%emt 0:00:31]} 59. Rb3 {[%emt 0:01:00]} Nd5 {[%emt 0:00:32]} 60. Rb8 {[%emt 0:00:41]} Rh2+ {[%emt 0:00:35]} 61. Kb3 {[%emt 0:00:26]} c4+ {[%emt 0:00:30]} 62. Kxc4 {[%emt 0:00:18]} Ne3+ {[%emt 0:00:27]} 63. Kd3 {[%emt 0:00:12]} Ng4 {[%emt 0:00:07]} 64. Rf8 {[%emt 0:00:28]} Nf2+ {[%emt 0:00:51]} 65. Kd4 {[%emt 0:00:55]} Ng4 {[%emt 0:00:10]} 66. Rxf5 {[%emt 0:00:29]} d5 {[%emt 0:00:50]} 67. Kd3 {[%emt 0:00:36]} Rh3+ {[%emt 0:00:09]} 68. Kd2 {[%emt 0:00:18]} Rh2+ {[%emt 0:00:49]} 69. Ke1 {[%emt 0:00:47]} Kc5 {[%emt 0:00:31]} 70. Rf7 {[%emt 0:00:23]} Kc4 {[%emt 0:00:20]} 71. Rxh7 {[%emt 0:00:29]} 0-1

[Event "FIDE WYCC Open U14 2023"]
[Site "Montesilvano"]
[Date "2023.11.14"]
[Round "2.10"]
[White "Coicev, Matei-Andrei"]
[Black "Lissillour, Baptiste"]
[Result "1/2-1/2"]
[ECO "B54"]
[WhiteElo "2006"]
[BlackElo "2298"]
[Annotator "ChessBase"]
[PlyCount "106"]
[EventDate "2023.11.13"]
[EventType "swiss"]
[EventCountry "ITA"]
[SourceTitle "playchess.com"]
[Source "ChessBase"]
[SourceQuality "1"]
[TimeControl "40/5400+30:1800+30"]

1. e4 {[%emt 0:00:16]} c5 {[%emt 0:00:03]} 2. Nf3 {[%emt 0:00:32]} d6 {[%emt 0:00:30]} 3. d4 {[%emt 0:00:39]} cxd4 {[%emt 0:00:06]} 4. Nxd4 {[%emt 0:00:11]} Nf6 {[%emt 0:01:00]} 5. f3 {[%emt 0:00:53]} Nc6 {[%emt 0:00:27]} 6. c4 {[%emt 0:02:20]} e6 {[%emt 0:00:04]} 7. Nc3 {[%emt 0:00:53]} Be7 {[%emt 0:01:20]} 8. Be3 {[%emt 0:01:12]} O-O {[%emt 0:00:05]} 9. Be2 {[%emt 0:00:52]} d5 {[%emt 0:00:44]} 10. exd5 {[%emt 0:04:49]} exd5 {[%emt 0:00:07]} 11. Nxc6 {[%emt 0:02:24]} bxc6 {[%emt 0:00:05]} 12. O-O {[%emt 0:03:13]} Re8 {[%emt 0:07:25]} 13. cxd5 {[%emt 0:04:39]} Nxd5 {[%emt 0:05:29]} 14. Nxd5 {[%emt 0:01:11]} cxd5 {[%emt 0:02:16]} 15. Bb5 {[%emt 0:03:12]} Bd7 {[%emt 0:16:20]} 16. Bxd7 {[%emt 0:05:15]} Qxd7 {[%emt 0:00:02]} 17. Bd4 {[%emt 0:03:10]} Rac8 {[%emt 0:07:25]} 18. Rc1 {[%emt 0:03:50]} Rxc1 {[%emt 0:15:00]} 19. Qxc1 {[%emt 0:00:14]} Qa4 {[%emt 0:00:06]} 20. Qc3 {[%emt 0:02:06]} Bb4 {[%emt 0:03:02]} 21. Qd3 {[%emt 0:01:48]} Rc8 {[%emt 0:15:19]} 22. Qf5 {[%emt 0:17:41]} Qc6 {[%emt 0:03:04]} 23. Qg4 {[%emt 0:03:27]} Bf8 {[%emt 0:04:30]} 24. Re1 {[%emt 0:16:25]} a5 {[%emt 0:00:57]} 25. Qf5 {[%emt 0:01:42]} Qc4 {[%emt 0:04:01]} 26. Bf2 {[%emt 0:01:41]} a4 {[%emt 0:02:27]} 27. b3 {[%emt 0:01:19]} Qc2 {[%emt 0:01:30]} 28. Qxc2 {[%emt 0:05:21]} Rxc2 {[%emt 0:00:01]} 29. bxa4 {[%emt 0:00:13]} Rxa2 {[%emt 0:01:35]} 30. h4 {[%emt 0:01:47]} Rxa4 {[%emt 0:04:02]} 31. Re8 {[%emt 0:00:31]} Ra5 {[%emt 0:00:52]} 32. Bb6 {[%emt 0:03:40]} Ra1+ {[%emt 0:00:30]} 33. Kh2 {[%emt 0:00:52]} Rc1 {[%emt 0:00:47]} 34. Rd8 {[%emt 0:01:00]} Rc6 {[%emt 0:03:06]} 35. Bd4 {[%emt 0:00:53]} f6 {[%emt 0:01:13]} 36. Rxd5 {[%emt 0:00:24]} Kf7 {[%emt 0:00:33]} 37. Bf2 {[%emt 0:00:45]} Ke6 {[%emt 0:01:04]} 38. Rb5 {[%emt 0:00:22]} Be7 {[%emt 0:01:13]} 39. Rb6 {[%emt 0:01:03]} Bd6+ {[%emt 0:00:06]} 40. Kh3 {[%emt 0:00:00]} Rxb6 {[%emt 0:00:00]} 41. Bxb6 {[%emt 0:00:29]} Kf5 {[%emt 0:01:47]} 42. Be3 {[%emt 0:00:26]} h5 {[%emt 0:00:30]} 43. Bf2 {[%emt 0:00:17]} Be5 {[%emt 0:00:50]} 44. Be3 {[%emt 0:00:10]} Bc3 {[%emt 0:00:38]} 45. Bc5 {[%emt 0:00:25]} Kf4 {[%emt 0:00:50]} 46. Bd6+ {[%emt 0:00:24]} Be5 {[%emt 0:00:12]} 47. Ba3 {[%emt 0:00:37]} Bd4 {[%emt 0:00:51]} 48. Bf8 {[%emt 0:00:29]} g5 {[%emt 0:01:00]} 49. hxg5 {[%emt 0:00:18]} fxg5 {[%emt 0:00:14]} 50. Bd6+ {[%emt 0:00:46]} Be5 {[%emt 0:00:37]} 51. g3+ {[%emt 0:00:12]} Kf5 {[%emt 0:00:07]} 52. g4+ {[%emt 0:00:07]} hxg4+ {[%emt 0:00:08]} 53. fxg4+ {[%emt 0:00:11]} Ke6 {[%emt 0:00:04]} 1/2-1/2

[Event "FIDE WYCC Open U14 2023"]
[Site "Montesilvano"]
[Date "2023.11.14"]
[Round "2.11"]
[White "Davudov, Tunar"]
[Black "Tenuunbold, Battulga"]
[Result "1-0"]
[ECO "B34"]
[WhiteElo "2000"]
[BlackElo "2290"]
[Annotator "ChessBase"]
[PlyCount "81"]
[EventDate "2023.11.13"]
[EventType "swiss"]
[EventCountry "ITA"]
[SourceTitle "playchess.com"]
[Source "ChessBase"]
[SourceQuality "1"]
[TimeControl "40/5400+30:1800+30"]

1. e4 {[%emt 0:00:05]} c5 {[%emt 0:00:05]} 2. Nf3 {[%emt 0:00:56]} Nc6 {[%emt 0:00:45]} 3. Nc3 {[%emt 0:01:42]} Nf6 {[%emt 0:01:22]} 4. d4 {[%emt 0:00:30]} cxd4 {[%emt 0:00:09]} 5. Nxd4 {[%emt 0:00:03]} e5 {[%emt 0:00:12]} 6. Ndb5 {[%emt 0:00:13]} d6 {[%emt 0:00:59]} 7. Nd5 {[%emt 0:00:35]} Nxd5 {[%emt 0:00:10]} 8. exd5 {[%emt 0:00:08]} Nb8 {[%emt 0:00:02]} 9. c4 {[%emt 0:01:02]} a6 {[%emt 0:00:07]} 10. Nc3 {[%emt 0:00:48]} Be7 {[%emt 0:00:33]} 11. Bd3 {[%emt 0:01:03]} O-O {[%emt 0:03:10]} 12. O-O {[%emt 0:00:16]} f5 {[%emt 0:04:07]} 13. f3 {[%emt 0:01:08]} Nd7 {[%emt 0:03:23]} 14. Be3 {[%emt 0:06:49]} Qe8 {[%emt 0:12:52]} 15. b4 {[%emt 0:07:26]} b6 {[%emt 0:13:05]} 16. Qb3 {[%emt 0:08:34]} Kh8 {[%emt 0:03:10]} 17. a4 {[%emt 0:10:50]} Rb8 {[%emt 0:05:25]} 18. Qc2 {[%emt 0:11:00]} Qh5 {[%emt 0:02:10]} 19. a5 {[%emt 0:09:07]} bxa5 {[%emt 0:02:10]} 20. bxa5 {[%emt 0:00:10]} Bg5 {[%emt 0:09:19]} 21. Bf2 {[%emt 0:02:30]} Nc5 {[%emt 0:02:14]} 22. Rab1 {[%emt 0:03:10]} Bd7 {[%emt 0:02:36]} 23. Rxb8 {[%emt 0:06:43]} Rxb8 {[%emt 0:00:47]} 24. Rb1 {[%emt 0:01:41]} Rc8 {[%emt 0:11:59]} 25. Rb6 {[%emt 0:04:50]} Be7 {[%emt 0:10:40]} 26. Bxc5 {[%emt 0:03:16]} Rxc5 {[%emt 0:00:38]} 27. Rb7 {[%emt 0:02:44]} e4 {[%emt 0:03:47]} 28. Rxd7 {[%emt 0:06:03]} exd3 {[%emt 0:00:04]} 29. Qxd3 {[%emt 0:00:15]} Bf6 {[%emt 0:06:08]} 30. Rxd6 {[%emt 0:05:59]} Rxa5 {[%emt 0:00:33]} 31. Rb6 {[%emt 0:01:05]} Ra1+ {[%emt 0:00:37]} 32. Nd1 {[%emt 0:01:28]} h6 {[%emt 0:01:48]} 33. d6 {[%emt 0:02:10]} Qe8 {[%emt 0:00:30]} 34. Kf1 {[%emt 0:00:59]} Bc3 {[%emt 0:01:00]} 35. Qxc3 {[%emt 0:00:58]} Rxd1+ {[%emt 0:00:02]} 36. Kf2 {[%emt 0:00:01]} Qd7 {[%emt 0:01:13]} 37. c5 {[%emt 0:00:24]} Kh7 {[%emt 0:00:08]} 38. Qc2 {[%emt 0:01:14]} Rd5 {[%emt 0:00:18]} 39. Qb2 {[%emt 0:01:31]} Rxc5 {[%emt 0:01:07]} 40. Rb7 {[%emt 0:00:00]} Rb5 {[%emt 0:00:00]} 41. Qxb5 {[%emt 0:00:30]} 1-0

[Event "FIDE WYCC Open U14 2023"]
[Site "Montesilvano"]
[Date "2023.11.14"]
[Round "2.12"]
[White "Cieslak, Patryk"]
[Black "Georgiadis, Anastasios"]
[Result "1/2-1/2"]
[ECO "C11"]
[WhiteElo "2284"]
[BlackElo "2001"]
[Annotator "ChessBase"]
[PlyCount "83"]
[EventDate "2023.11.13"]
[EventType "swiss"]
[EventCountry "ITA"]
[SourceTitle "playchess.com"]
[Source "ChessBase"]
[SourceQuality "1"]
[TimeControl "40/5400+30:1800+30"]

1. e4 {[%emt 0:00:01]} e6 {[%emt 0:00:07]} 2. d4 {[%emt 0:00:02]} d5 {[%emt 0:00:07]} 3. Nc3 {[%emt 0:00:48]} Nf6 {[%emt 0:00:12]} 4. e5 {[%emt 0:01:59]} Nfd7 {[%emt 0:00:34]} 5. f4 {[%emt 0:00:06]} c5 {[%emt 0:00:47]} 6. Nf3 {[%emt 0:00:16]} Nc6 {[%emt 0:00:29]} 7. Be3 {[%emt 0:00:05]} cxd4 {[%emt 0:00:36]} 8. Nxd4 {[%emt 0:00:15]} Bc5 {[%emt 0:00:30]} 9. Qd2 {[%emt 0:00:35]} O-O {[%emt 0:00:49]} 10. O-O-O {[%emt 0:00:52]} Bxd4 {[%emt 0:00:57]} 11. Bxd4 {[%emt 0:00:18]} Qa5 {[%emt 0:00:08]} 12. Qe3 {[%emt 0:04:50]} Rb8 {[%emt 0:05:41]} 13. Bd3 {[%emt 0:03:03]} b5 {[%emt 0:11:52]} 14. f5 {[%emt 0:03:54]} f6 {[%emt 0:22:04]} 15. exf6 {[%emt 0:20:36]} Nxf6 {[%emt 0:01:00]} 16. fxe6 {[%emt 0:04:42]} Nxd4 {[%emt 0:00:51]} 17. e7 {[%emt 0:07:11]} Re8 {[%emt 0:00:44]} 18. Qxd4 {[%emt 0:00:32]} Be6 {[%emt 0:07:27]} 19. Rhe1 {[%emt 0:07:13]} Bf7 {[%emt 0:03:03]} 20. Kb1 {[%emt 0:05:19]} b4 {[%emt 0:00:56]} 21. Ne2 {[%emt 0:00:01]} Rxe7 {[%emt 0:01:22]} 22. Nc1 {[%emt 0:04:11]} Rxe1 {[%emt 0:06:16]} 23. Rxe1 {[%emt 0:00:01]} b3 {[%emt 0:00:38]} 24. Re7 {[%emt 0:03:59]} bxc2+ {[%emt 0:00:48]} 25. Bxc2 {[%emt 0:01:32]} Qb6 {[%emt 0:02:00]} 26. Nb3 {[%emt 0:05:04]} Re8 {[%emt 0:04:16]} 27. Qxb6 {[%emt 0:05:07]} axb6 {[%emt 0:00:09]} 28. Rb7 {[%emt 0:03:29]} Re1+ {[%emt 0:06:43]} 29. Nc1 {[%emt 0:00:01]} Re6 {[%emt 0:01:04]} 30. a4 {[%emt 0:03:01]} g5 {[%emt 0:01:47]} 31. b4 {[%emt 0:01:41]} Ne4 {[%emt 0:01:32]} 32. Kb2 {[%emt 0:02:02]} Nd6 {[%emt 0:03:05]} 33. Rb8+ {[%emt 0:00:01]} Kg7 {[%emt 0:00:09]} 34. Bb3 {[%emt 0:02:30]} Nc4+ {[%emt 0:01:11]} 35. Bxc4 {[%emt 0:01:41]} dxc4 {[%emt 0:00:26]} 36. Rc8 {[%emt 0:00:01]} Rf6 {[%emt 0:00:59]} 37. Kc3 {[%emt 0:00:59]} Rf1 {[%emt 0:01:47]} 38. Kd2 {[%emt 0:04:26]} Rf2+ {[%emt 0:01:35]} 39. Kc3 {[%emt 0:00:01]} Rxg2 {[%emt 0:07:26]} 40. a5 {[%emt 0:00:00]} bxa5 {[%emt 0:00:00]} 41. bxa5 {[%emt 0:02:29]} Rxh2 {[%emt 0:08:33]} 42. a6 {[%emt 0:02:22]} 1/2-1/2

[Event "FIDE WYCC Open U14 2023"]
[Site "Montesilvano"]
[Date "2023.11.14"]
[Round "2.13"]
[White "Pehar, Borna"]
[Black "Matyassy, Lazar"]
[Result "1/2-1/2"]
[ECO "B62"]
[WhiteElo "1985"]
[BlackElo "2281"]
[Annotator "ChessBase"]
[PlyCount "88"]
[EventDate "2023.11.13"]
[EventType "swiss"]
[EventCountry "ITA"]
[SourceTitle "playchess.com"]
[Source "ChessBase"]
[SourceQuality "1"]
[TimeControl "40/5400+30:1800+30"]

1. e4 {[%emt 0:00:04]} c5 {[%emt 0:00:05]} 2. Nf3 {[%emt 0:00:08]} d6 {[%emt 0:00:05]} 3. d4 {[%emt 0:00:09]} cxd4 {[%emt 0:00:05]} 4. Nxd4 {[%emt 0:00:05]} Nf6 {[%emt 0:00:09]} 5. Nc3 {[%emt 0:00:24]} Nc6 {[%emt 0:00:10]} 6. Bg5 {[%emt 0:00:28]} e6 {[%emt 0:00:10]} 7. Bb5 Bd7 {[%emt 0:01:13]} 8. Qd3 {[%emt 0:00:56]} Qb6 {[%emt 0:10:11]} 9. O-O-O {[%emt 0:02:38]} Be7 {[%emt 0:09:26]} 10. f4 {[%emt 0:14:10]} O-O-O {[%emt 0:17:51]} 11. Rhf1 {[%emt 0:12:44]} Nxd4 {[%emt 0:19:12]} 12. Bxd7+ {[%emt 0:11:14]} Rxd7 {[%emt 0:00:48]} 13. Qxd4 {[%emt 0:00:23]} Qxd4 {[%emt 0:01:08]} 14. Rxd4 {[%emt 0:00:10]} h6 {[%emt 0:00:20]} 15. Bh4 {[%emt 0:09:06]} Nxe4 {[%emt 0:02:36]} 16. Bxe7 {[%emt 0:06:44]} Nxc3 {[%emt 0:03:02]} 17. Rc4+ {[%emt 0:01:15]} Kb8 {[%emt 0:00:09]} 18. Bxd6+ {[%emt 0:00:30]} Rxd6 {[%emt 0:00:05]} 19. Rxc3 {[%emt 0:00:10]} Rhd8 {[%emt 0:00:22]} 20. Rcf3 {[%emt 0:00:45]} Rd4 {[%emt 0:06:20]} 21. c3 {[%emt 0:04:21]} Re4 {[%emt 0:03:20]} 22. R1f2 {[%emt 0:01:57]} Kc7 {[%emt 0:03:16]} 23. Rd2 {[%emt 0:03:32]} Re1+ {[%emt 0:01:27]} 24. Kc2 {[%emt 0:00:03]} Rxd2+ {[%emt 0:00:36]} 25. Kxd2 {[%emt 0:00:02]} Rb1 {[%emt 0:00:12]} 26. Kc2 {[%emt 0:00:15]} Rg1 {[%emt 0:00:06]} 27. Rf2 {[%emt 0:00:50]} f5 {[%emt 0:02:00]} 28. Kd3 {[%emt 0:14:09]} g5 {[%emt 0:00:40]} 29. g3 {[%emt 0:03:24]} Kd6 {[%emt 0:00:15]} 30. Kd4 {[%emt 0:02:12]} Re1 {[%emt 0:07:33]} 31. c4 {[%emt 0:05:56]} gxf4 {[%emt 0:00:18]} 32. gxf4 {[%emt 0:00:01]} Re4+ {[%emt 0:00:18]} 33. Kd3 {[%emt 0:00:01]} a5 {[%emt 0:03:21]} 34. b3 {[%emt 0:01:35]} Kc5 {[%emt 0:05:06]} 35. a3 {[%emt 0:01:15]} h5 {[%emt 0:00:02]} 36. Rf3 {[%emt 0:00:59]} h4 {[%emt 0:00:28]} 37. Kc3 {[%emt 0:00:43]} Kc6 {[%emt 0:03:31]} 38. b4 {[%emt 0:01:44]} axb4+ {[%emt 0:00:48]} 39. axb4 {[%emt 0:00:08]} b5 {[%emt 0:00:06]} 40. c5 {[%emt 0:00:00]} Rc4+ {[%emt 0:00:00]} 41. Kb3 {[%emt 0:01:59]} h3 {[%emt 0:13:59]} 42. Re3 {[%emt 0:08:40]} Rxf4 {[%emt 0:01:32]} 43. Rxe6+ {[%emt 0:00:08]} Kd7 {[%emt 0:01:40]} 44. Re3 {[%emt 0:00:18]} Rh4 {[%emt 0:04:25]} 1/2-1/2

[Event "FIDE WYCC Open U14 2023"]
[Site "Montesilvano"]
[Date "2023.11.14"]
[Round "2.14"]
[White "Nainys, Zanas"]
[Black "Kozlovic, Jernej"]
[Result "0-1"]
[ECO "D70"]
[WhiteElo "1974"]
[BlackElo "2263"]
[Annotator "ChessBase"]
[PlyCount "98"]
[EventDate "2023.11.13"]
[EventType "swiss"]
[EventCountry "ITA"]
[SourceTitle "playchess.com"]
[Source "ChessBase"]
[SourceQuality "1"]
[TimeControl "40/5400+30:1800+30"]

1. d4 {[%emt 0:00:01]} d5 {[%emt 0:00:12]} 2. c4 {[%emt 0:00:01]} c6 {[%emt 0:01:02]} 3. Nf3 {[%emt 0:00:25]} Nf6 {[%emt 0:00:16]} 4. Nbd2 Bf5 {[%emt 0:03:41]} 5. Nh4 {[%emt 0:00:04]} Bg6 {[%emt 0:04:20]} 6. Qb3 {[%emt 0:00:14]} Qc7 {[%emt 0:00:28]} 7. Nxg6 {[%emt 0:00:38]} hxg6 {[%emt 0:00:13]} 8. g3 {[%emt 0:00:28]} e6 {[%emt 0:00:55]} 9. Bg2 {[%emt 0:00:21]} Nbd7 {[%emt 0:02:02]} 10. Nf3 {[%emt 0:01:24]} Qb6 {[%emt 0:08:38]} 11. c5 {[%emt 0:35:15]} Qa6 {[%emt 0:08:30]} 12. O-O {[%emt 0:03:08]} b6 {[%emt 0:00:24]} 13. cxb6 {[%emt 0:12:17]} axb6 {[%emt 0:01:46]} 14. Ne5 {[%emt 0:06:47]} Nxe5 {[%emt 0:04:20]} 15. dxe5 {[%emt 0:00:01]} Nd7 {[%emt 0:10:26]} 16. e4 {[%emt 0:02:38]} Nc5 {[%emt 0:05:51]} 17. Qc2 {[%emt 0:00:12]} Qd3 {[%emt 0:00:27]} 18. Qxd3 {[%emt 0:02:04]} Nxd3 {[%emt 0:00:12]} 19. exd5 {[%emt 0:00:01]} cxd5 {[%emt 0:02:16]} 20. Rd1 {[%emt 0:19:56]} Nxe5 {[%emt 0:01:29]} 21. Re1 {[%emt 0:00:58]} Nd3 {[%emt 0:04:32]} 22. Bxd5 {[%emt 0:00:21]} O-O-O {[%emt 0:06:52]} 23. Bxe6+ {[%emt 0:05:26]} fxe6 {[%emt 0:00:26]} 24. Rxe6 {[%emt 0:00:01]} Rd6 {[%emt 0:06:27]} 25. Re2 {[%emt 0:02:43]} Nxc1 {[%emt 0:03:04]} 26. Rxc1+ {[%emt 0:00:01]} Kd7 {[%emt 0:00:21]} 27. Rec2 {[%emt 0:00:07]} Rh5 {[%emt 0:02:12]} 28. Rc7+ {[%emt 0:00:58]} Ke6 {[%emt 0:00:26]} 29. R1c2 {[%emt 0:01:07]} Rc5 {[%emt 0:02:36]} 30. Re2+ {[%emt 0:00:06]} Re5 {[%emt 0:00:38]} 31. Rec2 {[%emt 0:00:26]} Be7 {[%emt 0:03:50]} 32. Kg2 {[%emt 0:00:32]} Bf6 {[%emt 0:00:21]} 33. R7c4 {[%emt 0:02:25]} Re1 {[%emt 0:00:42]} 34. h4 {[%emt 0:00:19]} Bd4 {[%emt 0:00:55]} 35. Rc8 {[%emt 0:00:26]} Kd5 {[%emt 0:00:26]} 36. Rf8 {[%emt 0:00:29]} Ree6 {[%emt 0:01:15]} 37. Rf3 {[%emt 0:00:36]} Bc5 {[%emt 0:02:48]} 38. Rf7 {[%emt 0:00:22]} Bd4 {[%emt 0:00:59]} 39. Rf3 {[%emt 0:00:02]} Re1 {[%emt 0:00:24]} 40. Rb3 {[%emt 0:00:00]} Rd1 {[%emt 0:00:00]} 41. Rb5+ {[%emt 0:00:46]} Ke4 {[%emt 0:04:06]} 42. Rb3 {[%emt 0:01:54]} Bc5 {[%emt 0:04:13]} 43. Re2+ {[%emt 0:00:10]} Kd5 {[%emt 0:01:04]} 44. Rb5 {[%emt 0:01:47]} Kc4 {[%emt 0:06:04]} 45. Rb3 {[%emt 0:01:05]} R6d2 {[%emt 0:09:28]} 46. Rc3+ {[%emt 0:04:24]} Kd4 {[%emt 0:04:09]} 47. Kf3 {[%emt 0:02:17]} Rxb2 {[%emt 0:03:23]} 48. Rce3 {[%emt 0:01:27]} Rxe2 {[%emt 0:01:13]} 49. Rxe2 {[%emt 0:00:14]} Kd3 {[%emt 0:01:42]} 0-1